fUSD/lending_fUSD_20240516
["ID","MTS","AMOUNT","RATE_DAILY","PERIOD"]
[327195634,1715890255252,-500.0,0.00011789,2]
[327195635,1715890255261,-500.0,0.00011789,2]
[327195636,1715890255271,-500.0,0.00011789,2]
[327195637,1715890255280,-812.73,0.00011789,2]
[327195638,1715890255290,-812.73,0.00011789,2]
[327195639,1715890255300,-500.0,0.00011789,2]
[327195640,1715890255309,-500.0,0.00011789,2]
[327195641,1715890255319,-574.01,0.00011789,2]
[327195642,1715890255328,-574.01,0.00011789,2]
[327195643,1715890255339,-500.0,0.00011789,2]
[327195644,1715890255349,-500.0,0.00011789,2]
[327195645,1715890255359,-581.87,0.00011789,2]
[327195646,1715890255368,-581.87,0.00011789,2]
[327195647,1715890255378,-500.0,0.00011789,2]
[327195648,1715890255387,-500.0,0.00011789,2]
[327195649,1715890255398,-2314.61,0.00011789,2]
[327195650,1715890255408,-2314.61,0.00011789,2]
[327195651,1715890255417,-500.0,0.00011789,2]
[327195652,1715890255430,-500.0,0.00011789,2]
[327195653,1715890255440,-500.0,0.00011789,2]
[327195654,1715890255449,-500.0,0.00011789,2]
[327195655,1715890255459,-1021.27,0.00011789,2]
[327195656,1715890255469,-1021.27,0.00011789,2]
[327195657,1715890255478,-500.0,0.00011789,2]
[327195658,1715890255489,-1802.62,0.00011789,2]
[327195659,1715890255499,-500.0,0.00011789,2]
[327195660,1715890255509,-1802.62,0.00011789,2]
[327195661,1715890255518,-775.41,0.00011789,2]
[327195662,1715890255529,-775.41,0.00011789,2]
[327195663,1715890255538,-500.0,0.00011789,2]
[327195664,1715890255548,-500.0,0.00011789,2]
[327195665,1715890255558,-500.0,0.00011789,2]
[327195666,1715890255569,-512.8,0.00011789,2]
[327195667,1715890255579,-500.0,0.00011789,2]
[327195668,1715890255590,-1824.61,0.00011789,2]
[327195669,1715890255601,-512.8,0.00011789,2]
[327195670,1715890255611,-1824.61,0.00011789,2]
[327195671,1715890255621,-975.47,0.00011789,2]
[327195672,1715890255631,-975.47,0.00011789,2]
[327195673,1715890255641,-500.0,0.00011789,2]
[327195674,1715890255652,-500.0,0.00011789,2]
[327195675,1715890255668,-510.41,0.00011789,2]
[327195676,1715890255679,-500.0,0.00011789,2]
[327195677,1715890255690,-510.41,0.00011789,2]
[327195678,1715890255700,-500.0,0.00011789,2]
[327195679,1715890255711,-576.14,0.00011789,2]
[327195680,1715890255721,-576.14,0.00011789,2]
[327195681,1715890255731,-1875.0,0.00011789,2]
[327195682,1715890255742,-1875.0,0.00011789,2]
[327195683,1715890255753,-1288.45,0.00011789,2]
[327195684,1715890255764,-1288.45,0.00011789,2]
[327195685,1715890255774,-500.0,0.00011789,2]
[327195686,1715890255784,-500.0,0.00011789,2]
[327195687,1715890255794,-500.0,0.00011789,2]
[327195688,1715890255804,-500.0,0.00011789,2]
[327195689,1715890255814,-500.0,0.00011789,2]
[327195690,1715890255825,-500.0,0.00011789,2]
[327195691,1715890255835,-1471.17,0.00011789,2]
[327195692,1715890255846,-500.0,0.00011789,2]
[327195693,1715890256017,-1471.17,0.00011789,2]
[327195694,1715890256028,-500.0,0.00011789,2]
[327195695,1715890256039,-960.31,0.00011789,2]
[327195696,1715890256051,-960.31,0.00011789,2]
[327195697,1715890256060,-959.32,0.00011789,2]
[327195698,1715890256072,-959.32,0.00011789,2]
[327195699,1715890256082,-150.0,0.00011789,2]
[327195700,1715890256093,-198.45173685,0.00011789,2]
[327195701,1715890256103,-1161.13,0.00011789,2]
[327195702,1715890256112,-1161.13,0.00011789,2]
[327195703,1715890256122,-500.0,0.00011789,2]
[327195704,1715890256134,-500.0,0.00011789,2]
[327195705,1715890256144,-1103.6,0.00011789,2]
[327195706,1715890256153,-1103.6,0.00011789,2]
[327195707,1715890256163,-500.0,0.00011789,2]
[327195708,1715890256172,-500.0,0.00011789,2]
[327195709,1715890256183,-539.2,0.00011789,2]
[327195710,1715890256192,-539.2,0.00011789,2]
[327195711,1715890256201,-612.77,0.00011789,2]
[327195712,1715890256211,-612.77,0.00011789,2]
[327195713,1715890256220,-905.82,0.00011789,2]
[327195714,1715890256229,-905.82,0.00011789,2]
[327195715,1715890256239,-500.0,0.00011789,2]
[327195716,1715890256248,-500.0,0.00011789,2]
[327195717,1715890256258,-946.19,0.00011789,2]
[327195718,1715890256267,-946.19,0.00011789,2]
[327195719,1715890256277,-500.0,0.00011789,2]
[327195720,1715890256286,-272.25696117,0.00011789,2]
[327195721,1715890256296,-1654.37,0.00011789,2]
[327195722,1715890256306,-1654.37,0.00011789,2]
[327195723,1715890256315,-713.81,0.00011789,2]
[327195724,1715890256326,-713.81,0.00011789,2]
[327195725,1715890256336,-500.0,0.00011789,2]
[327195726,1715890256347,-500.0,0.00011789,2]
[327195727,1715890256356,-500.0,0.00011789,2]
[327195728,1715890256367,-500.0,0.00011789,2]
[327195729,1715890256379,-514.17,0.00011789,2]
[327195730,1715890256388,-514.17,0.00011789,2]
[327195731,1715890256397,-500.0,0.00011789,2]
[327195732,1715890256408,-500.0,0.00011789,2]
[327195733,1715890256418,-500.0,0.00011789,2]
[327195734,1715890256429,-512.23197095,0.00011789,2]
[327195735,1715890256438,-500.0,0.00011789,2]
[327195736,1715890256447,-500.0,0.00011789,2]
[327195737,1715890256456,-500.0,0.00011789,2]
[327195738,1715890256466,-500.0,0.00011789,2]
[327195739,1715890256475,-500.0,0.00011789,2]
[327195740,1715890256486,-500.0,0.00011789,2]
[327195741,1715890256496,-547.27,0.00011789,2]
[327195742,1715890256506,-547.27,0.00011789,2]
[327195743,1715890256516,-608.58,0.00011789,2]
[327195744,1715890256526,-608.58,0.00011789,2]
[327195745,1715890256535,-1164.34,0.00011789,2]
[327195746,1715890256545,-1164.34,0.00011789,2]
[327195747,1715890256555,-500.0,0.00011789,2]
[327195748,1715890256565,-500.0,0.00011789,2]
[327195749,1715890256575,-500.0,0.00011789,2]
[327195750,1715890256585,-500.0,0.00011789,2]
[327195751,1715890256594,-500.0,0.00011789,2]
[327195752,1715890256603,-500.0,0.00011789,2]
[327195753,1715890256613,-500.0,0.00011789,2]
[327195754,1715890256623,-500.0,0.00011789,2]
[327195755,1715890256633,-1153.53,0.00011789,2]
[327195756,1715890256643,-1153.53,0.00011789,2]
[327195757,1715890256652,-778.95,0.00011789,2]
[327195758,1715890256663,-778.95,0.00011789,2]
[327195759,1715890256674,-500.0,0.00011789,2]
[327195760,1715890256684,-500.0,0.00011789,2]
[327195761,1715890256693,-500.0,0.00011789,2]
[327195762,1715890256703,-500.0,0.00011789,2]
[327195763,1715890256713,-500.0,0.00011789,2]
[327195764,1715890256722,-500.0,0.00011789,2]
[327195765,1715890256732,-500.0,0.00011789,2]
[327195766,1715890256742,-500.0,0.00011789,2]
[327195767,1715890256752,-500.0,0.00011789,2]
[327195768,1715890256761,-500.0,0.00011789,2]
[327195769,1715890256771,-500.0,0.00011789,2]
[327195770,1715890256780,-500.0,0.00011789,2]
[327195771,1715890256790,-500.0,0.00011789,2]
[327195772,1715890256800,-500.0,0.00011789,2]
[327195773,1715890256809,-500.0,0.00011789,2]
[327195774,1715890256819,-500.0,0.00011789,2]
[327195775,1715890256830,-917.88,0.00011789,2]
[327195776,1715890256840,-917.88,0.00011789,2]
[327195777,1715890256850,-500.0,0.00011789,2]
[327195778,1715890256859,-500.0,0.00011789,2]
[327195779,1715890256869,-668.25,0.00011789,2]
[327195780,1715890256878,-668.25,0.00011789,2]
[327195781,1715890256888,-500.0,0.00011789,2]
[327195782,1715890256899,-500.0,0.00011789,2]
[327195783,1715890256909,-500.0,0.00011789,2]
[327195784,1715890256918,-500.0,0.00011789,2]
[327195785,1715890256930,-500.0,0.00011789,2]
[327195786,1715890256940,-500.0,0.00011789,2]
[327195787,1715890256949,-500.0,0.00011789,2]
[327195788,1715890256959,-500.0,0.00011789,2]
[327195789,1715890256968,-500.0,0.00011789,2]
[327195790,1715890256977,-500.0,0.00011789,2]
[327195791,1715890256986,-500.0,0.00011789,2]
[327195792,1715890256996,-500.0,0.00011789,2]
[327195793,1715890257006,-710.96,0.00011789,2]
[327195794,1715890257015,-710.96,0.00011789,2]
[327195795,1715890257025,-500.0,0.00011789,2]
[327195796,1715890257035,-500.0,0.00011789,2]
[327195797,1715890257044,-742.3,0.00011789,2]
[327195798,1715890257053,-742.3,0.00011789,2]
[327195799,1715890257063,-467.71537711,0.00011789,2]
[327195800,1715890257075,-500.0,0.00011789,2]
[327195801,1715890257084,-500.0,0.00011789,2]
[327195802,1715890257095,-1500.05,0.00011789,2]
[327195803,1715890257104,-1500.05,0.00011789,2]
[327195804,1715890257114,-1140.38,0.00011789,2]
[327195805,1715890257126,-1140.38,0.00011789,2]
[327195806,1715890257137,-568.85,0.00011789,2]
[327195807,1715890257146,-568.85,0.00011789,2]
[327195808,1715890257156,-500.0,0.00011789,2]
[327195809,1715890257166,-500.0,0.00011789,2]
[327195810,1715890257175,-500.0,0.00011789,2]
[327195811,1715890257187,-500.0,0.00011789,2]
[327195812,1715890257196,-965.09,0.00011789,2]
[327195813,1715890257205,-965.09,0.00011789,2]
[327195814,1715890257214,-865.94,0.00011789,2]
[327195815,1715890257223,-865.94,0.00011789,2]
[327195816,1715890257232,-814.39,0.00011789,2]
[327195817,1715890257242,-814.39,0.00011789,2]
[327195818,1715890257251,-1398.97,0.00011789,2]
[327195819,1715890257260,-1398.97,0.00011789,2]
[327195820,1715890257270,-500.0,0.00011789,2]
[327195821,1715890257279,-500.0,0.00011789,2]
[327195822,1715890257288,-500.0,0.00011789,2]
[327195823,1715890257297,-500.0,0.00011789,2]
[327195824,1715890257307,-1666.7,0.00011789,2]
[327195825,1715890257316,-1666.7,0.00011789,2]
[327195826,1715890257326,-1635.35,0.00011789,2]
[327195827,1715890257335,-1635.35,0.00011789,2]
[327195828,1715890257344,-1054.63,0.00011789,2]
[327195829,1715890257354,-1054.63,0.00011789,2]
[327195830,1715890257363,-11163.01555576,0.0001179,2]
[327195831,1715890257372,-468585.2707565,0.0001179,2]
[327195832,1715890257382,-151.0,0.0001179,2]
[327195833,1715890257391,-151.0,0.0001179,2]
[327195834,1715890257401,-151.0,0.0001179,2]
[327195835,1715890257410,-151.0,0.0001179,2]
[327195836,1715890257420,-280.831282,0.0001179,2]
[327195837,1715890257430,-151.0,0.0001179,2]
[327195838,1715890257440,-151.0,0.0001179,2]
[327195839,1715890257449,-4067.198901,0.0001179,2]
[327195840,1715890257459,-500.0,0.00011791,2]
[327195841,1715890257468,-1127.8203619,0.00011791,2]
[327195842,1715890257480,-500.0,0.00011791,2]
[327195843,1715890257490,-710.96,0.00011791,2]
[327195844,1715890257500,-500.0,0.00011791,2]
[327195845,1715890257509,-804.3015871,0.00011791,2]
[327195846,1715890257518,-500.0,0.00011791,2]
[327195847,1715890257528,-33819.3153632,0.00011791,2]
[327195848,1715890257537,-500.0,0.00011791,2]
[327195849,1715890257547,-500.0,0.00011791,2]
[327195850,1715890257557,-865.94,0.00011791,2]
[327195851,1715890257566,-403.1060611,0.00011791,2]
[327195852,1715890257576,-1127.8203619,0.00011792,2]
[327195853,1715890257585,-1127.8203619,0.00011792,2]
[327195854,1715890257594,-1127.8203619,0.00011792,2]
[327195855,1715890257604,-804.3015871,0.00011792,2]
[327195856,1715890257615,-804.3015871,0.00011792,2]
[327195857,1715890257625,-804.3015871,0.00011792,2]
[327195858,1715890257635,-25655.7347728,0.00011792,2]
[327195859,1715890257645,-17492.1541825,0.00011792,2]
[327195860,1715890257656,-9328.5735921,0.00011792,2]
[327195861,1715890257667,-403.1060611,0.00011792,2]
[327195862,1715890257677,-403.1060611,0.00011792,2]
[327195863,1715890257688,-403.1060611,0.00011792,2]
[327195864,1715890257698,-500.0,0.00011798,2]
[327195865,1715890257707,-500.0,0.00011798,2]
[327195866,1715890257716,-500.0,0.00011798,2]
[327195867,1715890257726,-806.95,0.00011798,2]
[327195868,1715890257736,-500.0,0.00011798,2]
[327195869,1715890257747,-500.0,0.00011798,2]
[327195870,1715890257757,-1543.12,0.00011798,2]
[327195871,1715890257767,-667.86,0.00011798,2]
[327195872,1715890257776,-643.3,0.00011798,2]
[327195873,1715890257786,-615.61,0.00011798,2]
[327195874,1715890257795,-989.14,0.00011798,2]
[327195875,1715890257805,-500.0,0.00011798,2]
[327195876,1715890257815,-500.0,0.00011798,2]
[327195877,1715890257825,-633.55,0.00011798,2]
[327195878,1715890257836,-500.0,0.00011798,2]
[327195879,1715890257845,-500.0,0.00011798,2]
[327195880,1715890257855,-500.0,0.00011798,2]
[327195881,1715890257864,-812.73,0.00011798,2]
[327195882,1715890257874,-500.0,0.00011798,2]
[327195883,1715890257884,-574.01,0.00011798,2]
[327195884,1715890257895,-500.0,0.00011798,2]
[327195885,1715890257904,-581.87,0.00011798,2]
[327195886,1715890257914,-500.0,0.00011798,2]
[327195887,1715890257923,-2314.61,0.00011798,2]
[327195888,1715890257934,-500.0,0.00011798,2]
[327195889,1715890257944,-500.0,0.00011798,2]
[327195890,1715890257954,-1021.27,0.00011798,2]
[327195891,1715890257963,-500.0,0.00011798,2]
[327195892,1715890257972,-1802.62,0.00011798,2]
[327195893,1715890257982,-775.41,0.00011798,2]
[327195894,1715890257992,-403.53524872,0.00011798,2]
[327195895,1715890258001,-512.8,0.00011798,2]
[327195896,1715890258010,-500.0,0.00011798,2]
[327195897,1715890258020,-1824.61,0.00011798,2]
[327195898,1715890258030,-975.47,0.00011798,2]
[327195899,1715890258039,-500.0,0.00011798,2]
[327195900,1715890258048,-510.41,0.00011798,2]
[327195901,1715890258057,-500.0,0.00011798,2]
[327195902,1715890258067,-576.14,0.00011798,2]
[327195903,1715890258076,-1875.0,0.00011798,2]
[327195904,1715890258085,-1288.45,0.00011798,2]
[327195905,1715890258094,-459.87,0.00011798,2]
[327195906,1715890258104,-500.0,0.00011798,2]
[327195907,1715890258114,-500.0,0.00011798,2]
[327195908,1715890258123,-1471.17,0.00011798,2]
[327195909,1715890258133,-500.0,0.00011798,2]
[327195910,1715890258142,-960.31,0.00011798,2]
[327195911,1715890258151,-959.32,0.00011798,2]
[327195912,1715890258161,-1161.13,0.00011798,2]
[327195913,1715890258170,-500.0,0.00011798,2]
[327195914,1715890258181,-1103.6,0.00011798,2]
[327195915,1715890258190,-500.0,0.00011798,2]
[327195916,1715890258200,-539.2,0.00011798,2]
[327195917,1715890258209,-612.77,0.00011798,2]
[327195918,1715890258218,-905.82,0.00011798,2]
[327195919,1715890258227,-500.0,0.00011798,2]
[327195920,1715890258236,-946.19,0.00011798,2]
[327195921,1715890258246,-1654.37,0.00011798,2]
[327195922,1715890258255,-713.81,0.00011798,2]
[327195923,1715890258264,-500.0,0.00011798,2]
[327195924,1715890258274,-500.0,0.00011798,2]
[327195925,1715890258283,-514.17,0.00011798,2]
[327195926,1715890258292,-500.0,0.00011798,2]
[327195927,1715890258301,-500.0,0.00011798,2]
[327195928,1715890258310,-500.0,0.00011798,2]
[327195929,1715890258319,-314.41117388,0.00011798,2]
[327195930,1715890258329,-547.27,0.00011798,2]
[327195931,1715890258338,-608.58,0.00011798,2]
[327195932,1715890258348,-1164.34,0.00011798,2]
[327195933,1715890258357,-500.0,0.00011798,2]
[327195934,1715890258367,-500.0,0.00011798,2]
[327195935,1715890258376,-500.0,0.00011798,2]
[327195936,1715890258385,-500.0,0.00011798,2]
[327195937,1715890258395,-1153.53,0.00011798,2]
[327195938,1715890258404,-778.95,0.00011798,2]
[327195939,1715890258414,-500.0,0.00011798,2]
[327195940,1715890258423,-500.0,0.00011798,2]
[327195941,1715890258434,-500.0,0.00011798,2]
[327195942,1715890258444,-500.0,0.00011798,2]
[327195943,1715890258453,-500.0,0.00011798,2]
[327195944,1715890258462,-500.0,0.00011798,2]
[327195945,1715890258471,-500.0,0.00011798,2]
[327195946,1715890258480,-917.88,0.00011798,2]
[327195947,1715890258490,-500.0,0.00011798,2]
[327195948,1715890258499,-668.25,0.00011798,2]
[327195949,1715890258508,-500.0,0.00011798,2]
[327195950,1715890258518,-500.0,0.00011798,2]
[327195951,1715890258527,-500.0,0.00011798,2]
[327195952,1715890258536,-500.0,0.00011798,2]
[327195953,1715890258545,-500.0,0.00011798,2]
[327195954,1715890258554,-500.0,0.00011798,2]
[327195955,1715890258563,-710.96,0.00011798,2]
[327195956,1715890258573,-509.60863958,0.00011798,2]
[327195957,1715890258582,-742.3,0.00011798,2]
[327195958,1715890258591,-467.37,0.00011798,2]
[327195959,1715890258600,-1500.05,0.00011798,2]
[327195960,1715890258610,-1140.38,0.00011798,2]
[327195961,1715890258619,-568.85,0.00011798,2]
[327195962,1715890258629,-500.0,0.00011798,2]
[327195963,1715890258638,-500.0,0.00011798,2]
[327195964,1715890258648,-500.0,0.00011798,2]
[327195965,1715890258657,-965.09,0.00011798,2]
[327195966,1715890258671,-865.94,0.00011798,2]
[327195967,1715890258681,-814.39,0.00011798,2]
[327195968,1715890258689,-1398.97,0.00011798,2]
[327195969,1715890258699,-500.0,0.00011798,2]
[327195970,1715890258709,-500.0,0.00011798,2]
[327195971,1715890258718,-500.0,0.00011798,2]
[327195972,1715890258728,-500.0,0.00011798,2]
[327195973,1715890258738,-500.0,0.00011798,2]
[327195974,1715890258748,-500.0,0.00011798,2]
[327195975,1715890258757,-500.0,0.00011798,2]
[327195976,1715890258766,-500.0,0.00011798,2]
[327195977,1715890258776,-500.0,0.00011798,2]
[327195978,1715890258785,-500.0,0.00011798,2]
[327195979,1715890258794,-563.84,0.00011798,2]
[327195980,1715890258803,-1666.7,0.00011798,2]
[327195981,1715890258812,-1635.35,0.00011798,2]
[327195982,1715890258822,-1054.63,0.00011798,2]
[327195983,1715890258831,-150.0,0.00011798,2]
[327195984,1715890258840,-406239.21930477,0.00011799,2]
[327195985,1715890258850,-500.0,0.00011799,2]
[327195986,1715890258859,-500.0,0.00011799,2]
[327195987,1715890258868,-500.0,0.00011799,2]
[327195988,1715890258877,-500.0,0.00011799,2]
[327195989,1715890258886,-500.0,0.00011799,2]
[327195990,1715890258895,-500.0,0.00011799,2]
[327195991,1715890258905,-500.0,0.00011799,2]
[327195992,1715890258914,-500.0,0.00011799,2]
[327195993,1715890258923,-500.0,0.00011799,2]
[327195994,1715890258935,-500.0,0.00011799,2]
[327195995,1715890258943,-500.0,0.00011799,2]
[327195996,1715890258952,-500.0,0.00011799,2]
[327195997,1715890258961,-422.83540902,0.00011799,2]
[327195998,1715890258969,-500.0,0.00011799,2]
[327195999,1715890258978,-500.0,0.00011799,2]
[327196000,1715890258987,-500.0,0.00011799,2]
[327196001,1715890258996,-500.0,0.00011799,2]
[327196002,1715890259006,-500.0,0.00011799,2]
[327196003,1715890259015,-500.0,0.00011799,2]
[327196004,1715890259024,-500.0,0.00011799,2]
[327196005,1715890259033,-500.0,0.00011799,2]
[327196006,1715890259043,-500.0,0.00011799,2]
[327196007,1715890259052,-620.45177957,0.00011799,2]
[327196008,1715890259061,-806.95,0.00011799,2]
[327196009,1715890259070,-806.95,0.00011799,2]
[327196010,1715890259080,-806.95,0.00011799,2]
[327196011,1715890259089,-806.95,0.00011799,2]
[327196012,1715890259098,-806.95,0.00011799,2]
[327196013,1715890259108,-806.95,0.00011799,2]
[327196014,1715890259118,-806.95,0.00011799,2]
[327196015,1715890259127,-806.95,0.00011799,2]
[327196016,1715890259137,-806.95,0.00011799,2]
[327196017,1715890259146,-806.95,0.00011799,2]
[327196018,1715890259156,-806.95,0.00011799,2]
[327196019,1715890259165,-806.95,0.00011799,2]
[327196020,1715890259174,-806.95,0.00011799,2]
[327196021,1715890259186,-806.95,0.00011799,2]
[327196022,1715890259195,-807.16242876,0.00011799,2]
[327196023,1715890259204,-500.0,0.00011799,2]
[327196024,1715890259213,-538.69573099,0.00011799,2]
[327196025,1715890259223,-644.86549295,0.00011799,2]
[327196026,1715890259233,-1543.12,0.00011799,2]
[327196027,1715890259242,-1543.12,0.00011799,2]
[327196028,1715890259251,-1543.12,0.00011799,2]
[327196029,1715890259261,-1543.12,0.00011799,2]
[327196030,1715890259270,-1543.12,0.00011799,2]
[327196031,1715890259280,-1543.12,0.00011799,2]
[327196032,1715890259289,-1543.12,0.00011799,2]
[327196033,1715890259298,-1543.12,0.00011799,2]
[327196034,1715890259308,-1543.12,0.00011799,2]
[327196035,1715890259317,-1543.12,0.00011799,2]
[327196036,1715890259326,-1543.12,0.00011799,2]
[327196037,1715890259336,-1543.12,0.00011799,2]
[327196038,1715890259346,-1543.12,0.00011799,2]
[327196039,1715890259356,-1543.12,0.00011799,2]
[327196040,1715890259365,-1543.13270174,0.00011799,2]
[327196041,1715890259374,-667.86,0.00011799,2]
[327196042,1715890259383,-667.86,0.00011799,2]
[327196043,1715890259392,-667.86,0.00011799,2]
[327196044,1715890259401,-643.3,0.00011799,2]
[327196045,1715890259411,-667.86,0.00011799,2]
[327196046,1715890259578,-643.3,0.00011799,2]
[327196047,1715890259588,-643.3,0.00011799,2]
[327196048,1715890259597,-667.86,0.00011799,2]
[327196049,1715890259606,-643.3,0.00011799,2]
[327196050,1715890259616,-667.86,0.00011799,2]
[327196051,1715890259625,-643.3,0.00011799,2]
[327196052,1715890259635,-667.86,0.00011799,2]
[327196053,1715890259644,-643.3,0.00011799,2]
[327196054,1715890259653,-667.86,0.00011799,2]
[327196055,1715890259664,-643.3,0.00011799,2]
[327196056,1715890259675,-667.86,0.00011799,2]
[327196057,1715890259689,-667.86,0.00011799,2]
[327196058,1715890259698,-643.3,0.00011799,2]
[327196059,1715890259706,-667.86,0.00011799,2]
[327196060,1715890259715,-643.3,0.00011799,2]
[327196061,1715890259724,-667.86,0.00011799,2]
[327196062,1715890259733,-643.3,0.00011799,2]
[327196063,1715890259744,-643.3,0.00011799,2]
[327196064,1715890259754,-643.3,0.00011799,2]
[327196065,1715890259764,-667.86,0.00011799,2]
[327196066,1715890259773,-643.3,0.00011799,2]
[327196067,1715890259782,-667.86,0.00011799,2]
[327196068,1715890259792,-643.3,0.00011799,2]
[327196069,1715890259801,-668.06760485,0.00011799,2]
[327196070,1715890259810,-643.3,0.00011799,2]
[327196071,1715890259820,-615.61,0.00011799,2]
[327196072,1715890259829,-615.61,0.00011799,2]
[327196073,1715890259839,-615.61,0.00011799,2]
[327196074,1715890259849,-615.61,0.00011799,2]
[327196075,1715890259858,-615.61,0.00011799,2]
[327196076,1715890259868,-615.61,0.00011799,2]
[327196077,1715890259877,-615.61,0.00011799,2]
[327196078,1715890259887,-615.61,0.00011799,2]
[327196079,1715890259896,-615.61,0.00011799,2]
[327196080,1715890259906,-615.61,0.00011799,2]
[327196081,1715890259916,-615.61,0.00011799,2]
[327196082,1715890259926,-615.61,0.00011799,2]
[327196083,1715890259938,-615.61,0.00011799,2]
[327196084,1715890259947,-615.61,0.00011799,2]
[327196085,1715890259955,-615.77711972,0.00011799,2]
[327196086,1715890259964,-989.14,0.00011799,2]
[327196087,1715890259973,-989.14,0.00011799,2]
[327196088,1715890259983,-989.14,0.00011799,2]
[327196089,1715890259991,-989.14,0.00011799,2]
[327196090,1715890260001,-989.14,0.00011799,2]
[327196091,1715890260010,-989.14,0.00011799,2]
[327196092,1715890260019,-989.14,0.00011799,2]
[327196093,1715890260028,-989.14,0.00011799,2]
[327196094,1715890260037,-500.0,0.00011799,2]
[327196095,1715890260046,-989.14,0.00011799,2]
[327196096,1715890260056,-500.0,0.00011799,2]
[327196097,1715890260065,-989.14,0.00011799,2]
[327196098,1715890260075,-500.0,0.00011799,2]
[327196099,1715890260084,-989.14,0.00011799,2]
[327196100,1715890260093,-989.14,0.00011799,2]
[327196101,1715890260102,-602.4376555,0.00011799,2]
[327196102,1715890260111,-989.14,0.00011799,2]
[327196103,1715890260120,-989.14,0.00011799,2]
[327196104,1715890260129,-989.35382848,0.00011799,2]
[327196105,1715890260138,-500.0,0.00011799,2]
[327196106,1715890260147,-500.0,0.00011799,2]
[327196107,1715890260157,-500.0,0.00011799,2]
[327196108,1715890260166,-500.0,0.00011799,2]
[327196109,1715890260175,-500.0,0.00011799,2]
[327196110,1715890260186,-500.0,0.00011799,2]
[327196111,1715890260195,-500.0,0.00011799,2]
[327196112,1715890260204,-500.0,0.00011799,2]
[327196113,1715890260213,-500.0,0.00011799,2]
[327196114,1715890260223,-500.0,0.00011799,2]
[327196115,1715890260232,-500.0,0.00011799,2]
[327196116,1715890260241,-500.0,0.00011799,2]
[327196117,1715890260251,-157.9863524,0.00011799,2]
[327196118,1715890260261,-633.55,0.00011799,2]
[327196119,1715890260270,-633.55,0.00011799,2]
[327196120,1715890260280,-633.55,0.00011799,2]
[327196121,1715890260289,-633.55,0.00011799,2]
[327196122,1715890260298,-633.55,0.00011799,2]
[327196123,1715890260307,-633.55,0.00011799,2]
[327196124,1715890260316,-633.55,0.00011799,2]
[327196125,1715890260325,-633.55,0.00011799,2]
[327196126,1715890260334,-633.55,0.00011799,2]
[327196127,1715890260343,-633.55,0.00011799,2]
[327196128,1715890260352,-633.55,0.00011799,2]
[327196129,1715890260361,-633.55,0.00011799,2]
[327196130,1715890260370,-633.55,0.00011799,2]
[327196131,1715890260379,-633.55,0.00011799,2]
[327196132,1715890260390,-633.61158255,0.00011799,2]
[327196133,1715890260399,-500.0,0.00011799,2]